[Event "Titled Tuesday Blitz August 1 Early 2023"]
[White "Polaczek, Richard"]
[Black "Georg, Heinz"]
[WhiteFideId "200026"]
[BlackFideId "4607295"]
[WhiteElo "2450"]
[BlackElo "2311"]
[Result "1-0"]
[Round "7"]
[TimeControl "180+1"]
[Date "2023.08.01"]
[WhiteClock "0:00:09"]
[BlackClock "0:00:02"]
[Board "166"]

1. d4 {[%clk 0:02:58]}  f5 {[%clk 0:02:59]} 2. Nf3 {[%clk 0:02:57]}  Nf6 {[%clk 0:02:59]} 3. g3 {[%clk 0:02:57]}  g6 {[%clk 0:02:59]} 4. Bg2 {[%clk 0:02:57]}  Bg7 {[%clk 0:02:59]} 5. b4 {[%clk 0:02:57]}  O-O {[%clk 0:02:59]} 6. Bb2 {[%clk 0:02:57]}  d6 {[%clk 0:03:00]} 7. c4 {[%clk 0:02:56]}  Ne4 {[%clk 0:02:56]} 8. Qb3 {[%clk 0:02:54]}  e6 {[%clk 0:02:55]} 9. O-O {[%clk 0:02:53]}  c6 {[%clk 0:02:47]} 10. a4 {[%clk 0:02:51]}  d5 {[%clk 0:02:43]} 11. Nbd2 {[%clk 0:02:44]}  Nd7 {[%clk 0:02:22]} 12. b5 {[%clk 0:02:42]}  Nxd2 {[%clk 0:02:15]} 13. Nxd2 {[%clk 0:02:40]}  Nf6 {[%clk 0:02:15]} 14. Ba3 {[%clk 0:02:30]}  Rf7 {[%clk 0:02:13]} 15. Nf3 {[%clk 0:02:29]}  Ne4 {[%clk 0:02:11]} 16. Rad1 {[%clk 0:02:21]}  a6 {[%clk 0:01:50]} 17. bxc6 {[%clk 0:02:18]}  bxc6 {[%clk 0:01:49]} 18. Ne5 {[%clk 0:02:10]}  Bxe5 {[%clk 0:01:48]} 19. dxe5 {[%clk 0:02:10]}  a5 {[%clk 0:01:41]} 20. f3 {[%clk 0:01:58]}  Ng5 {[%clk 0:01:31]} 21. h4 {[%clk 0:01:54]}  Rb7 {[%clk 0:01:31]} 22. Qc2 {[%clk 0:01:47]}  Nf7 {[%clk 0:01:31]} 23. e4 {[%clk 0:01:39]}  Qb6+ {[%clk 0:01:19]} 24. Kh1 {[%clk 0:01:26]}  Qb3 {[%clk 0:01:19]} 25. Qxb3 {[%clk 0:01:07]}  Rxb3 {[%clk 0:01:18]} 26. Bc5 {[%clk 0:00:51]}  Ba6 {[%clk 0:01:13]} 27. exd5 {[%clk 0:00:42]}  cxd5 {[%clk 0:01:11]} 28. cxd5 {[%clk 0:00:32]}  Bxf1 {[%clk 0:01:03]} 29. Bxf1 {[%clk 0:00:26]}  exd5 {[%clk 0:01:02]} 30. e6 {[%clk 0:00:24]}  Ne5 {[%clk 0:00:58]} 31. Rxd5 {[%clk 0:00:23]}  Nxf3 {[%clk 0:00:29]} 32. e7 {[%clk 0:00:23]}  Re8 {[%clk 0:00:15]} 33. Rd8 {[%clk 0:00:20]}  Rb2 {[%clk 0:00:07]} 34. Rxe8+ {[%clk 0:00:16]}  Kg7 {[%clk 0:00:07]} 35. Rg8+ {[%clk 0:00:14]}  Kf6 {[%clk 0:00:02]} 36. e8=N+ {[%clk 0:00:11]}  Kf7 {[%clk 0:00:02]} 37. Bc4# {[%clk 0:00:09]} 1-0


[Site "https://www.chess.com"]

[Event "Titled Tuesday Blitz August 1 Early 2023"]
[White "Levitan, Caleb Levi"]
[Black "Kazakov, Mikhail"]
[WhiteFideId "14332620"]
[BlackFideId "14102749"]
[WhiteElo "2307"]
[BlackElo "2432"]
[Result "0-1"]
[Round "7"]
[TimeControl "180+1"]
[Date "2023.08.01"]
[WhiteClock "0:00:00"]
[BlackClock "0:00:06"]
[Board "167"]

1. e4 {[%clk 0:03:00]}  e5 {[%clk 0:02:55]} 2. Nf3 {[%clk 0:03:01]}  Nc6 {[%clk 0:02:48]} 3. Bb5 {[%clk 0:03:00]}  a6 {[%clk 0:02:47]} 4. Ba4 {[%clk 0:02:59]}  Nf6 {[%clk 0:02:46]} 5. Qe2 {[%clk 0:03:00]}  b5 {[%clk 0:02:43]} 6. Bb3 {[%clk 0:02:59]}  Be7 {[%clk 0:02:43]} 7. c3 {[%clk 0:02:58]}  O-O {[%clk 0:02:42]} 8. O-O {[%clk 0:02:57]}  h6 {[%clk 0:02:35]} 9. Rd1 {[%clk 0:02:40]}  d5 {[%clk 0:02:29]} 10. d3 {[%clk 0:02:37]}  Re8 {[%clk 0:02:26]} 11. Nbd2 {[%clk 0:02:37]}  Bf8 {[%clk 0:02:24]} 12. Nf1 {[%clk 0:02:36]}  d4 {[%clk 0:02:08]} 13. Ng3 {[%clk 0:02:21]}  dxc3 {[%clk 0:02:02]} 14. bxc3 {[%clk 0:02:22]}  Na5 {[%clk 0:01:56]} 15. Bc2 {[%clk 0:02:16]}  c5 {[%clk 0:01:55]} 16. Nh4 {[%clk 0:01:54]}  g6 {[%clk 0:01:51]} 17. Nf3 {[%clk 0:01:38]}  Nc6 {[%clk 0:01:48]} 18. Be3 {[%clk 0:01:26]}  Ng4 {[%clk 0:01:43]} 19. h3 {[%clk 0:01:19]}  Nxe3 {[%clk 0:01:41]} 20. Qxe3 {[%clk 0:01:19]}  Be6 {[%clk 0:01:32]} 21. Bb3 {[%clk 0:01:03]}  b4 {[%clk 0:01:28]} 22. Bxe6 {[%clk 0:00:55]}  Rxe6 {[%clk 0:01:28]} 23. cxb4 {[%clk 0:00:53]}  cxb4 {[%clk 0:01:25]} 24. Ne2 {[%clk 0:00:48]}  a5 {[%clk 0:01:14]} 25. Rdc1 {[%clk 0:00:26]}  Rc8 {[%clk 0:01:06]} 26. d4 {[%clk 0:00:21]}  exd4 {[%clk 0:01:00]} 27. Nexd4 {[%clk 0:00:20]}  Nxd4 {[%clk 0:00:59]} 28. Nxd4 {[%clk 0:00:19]}  Re8 {[%clk 0:00:41]} 29. Rd1 {[%clk 0:00:17]}  Qe7 {[%clk 0:00:38]} 30. f3 {[%clk 0:00:10]}  Bg7 {[%clk 0:00:32]} 31. Rab1 {[%clk 0:00:08]}  Rc3 {[%clk 0:00:20]} 32. Qe2 {[%clk 0:00:04]}  Qa7 {[%clk 0:00:19]} 33. Qf2 {[%clk 0:00:03]}  Rec8 {[%clk 0:00:18]} 34. Nb3 {[%clk 0:00:03]}  Qxf2+ {[%clk 0:00:17]} 35. Kxf2 {[%clk 0:00:03]}  Rc2+ {[%clk 0:00:18]} 36. Rd2 {[%clk 0:00:04]}  Rxd2+ {[%clk 0:00:18]} 37. Nxd2 {[%clk 0:00:05]}  Rc2 {[%clk 0:00:18]} 38. Ke3 {[%clk 0:00:05]}  Rxa2 {[%clk 0:00:17]} 39. Nc4 {[%clk 0:00:05]}  Rxg2 {[%clk 0:00:16]} 40. Nxa5 {[%clk 0:00:05]}  Bc3 {[%clk 0:00:13]} 41. Nc6 {[%clk 0:00:05]}  Rh2 {[%clk 0:00:09]} 42. Nxb4 {[%clk 0:00:05]}  Rxh3 {[%clk 0:00:09]} 43. Nd5 {[%clk 0:00:06]}  Be5 {[%clk 0:00:09]} 44. Rb5 {[%clk 0:00:03]}  Kg7 {[%clk 0:00:08]} 45. Nb6 {[%clk 0:00:02]}  Bf6 {[%clk 0:00:07]} 46. Nd7 {[%clk 0:00:02]}  Bg5+ {[%clk 0:00:06]} 47. Ke2 {[%clk 0:00:01]}  Rh2+ {[%clk 0:00:07]} 48. Kf1 {[%clk 0:00:02]}  Ra2 {[%clk 0:00:07]} 49. Kg1 {[%clk 0:00:02]}  Bf4 {[%clk 0:00:07]} 50. Nc5 {[%clk 0:00:02]}  h5 {[%clk 0:00:07]} 51. Nd3 {[%clk 0:00:02]}  Be3+ {[%clk 0:00:08]} 52. Kf1 {[%clk 0:00:02]}  h4 {[%clk 0:00:08]} 53. Ne5 {[%clk 0:00:02]}  h3 {[%clk 0:00:08]} 54. Rb7 {[%clk 0:00:02]}  h2 {[%clk 0:00:06]} 55. Rxf7+ {[%clk 0:00:00]}  Kg8 {[%clk 0:00:06]} 0-1


[Site "https://www.chess.com"]

[Event "Titled Tuesday Blitz August 1 Early 2023"]
[White "Stachanczyk, Jacek"]
[Black "Kaminski, Victor"]
[WhiteFideId "1116657"]
[BlackFideId "1131630"]
[WhiteElo "2427"]
[BlackElo "2307"]
[Result "0-1"]
[Round "7"]
[TimeControl "180+1"]
[Date "2023.08.01"]
[WhiteClock "0:00:07"]
[BlackClock "0:00:05"]
[Board "168"]

1. e4 {[%clk 0:02:56]}  e5 {[%clk 0:02:58]} 2. Nf3 {[%clk 0:02:55]}  Nc6 {[%clk 0:02:58]} 3. Bb5 {[%clk 0:02:55]}  a6 {[%clk 0:02:58]} 4. Ba4 {[%clk 0:02:55]}  Nf6 {[%clk 0:02:57]} 5. O-O {[%clk 0:02:55]}  Be7 {[%clk 0:02:56]} 6. Re1 {[%clk 0:02:55]}  b5 {[%clk 0:02:56]} 7. Bb3 {[%clk 0:02:55]}  O-O {[%clk 0:02:56]} 8. a4 {[%clk 0:02:54]}  Bb7 {[%clk 0:02:51]} 9. d3 {[%clk 0:02:52]}  d6 {[%clk 0:02:50]} 10. Nbd2 {[%clk 0:02:45]}  Na5 {[%clk 0:02:49]} 11. Ba2 {[%clk 0:02:43]}  c5 {[%clk 0:02:49]} 12. c3 {[%clk 0:02:39]}  Rb8 {[%clk 0:02:45]} 13. axb5 {[%clk 0:02:21]}  axb5 {[%clk 0:02:43]} 14. Nf1 {[%clk 0:02:18]}  c4 {[%clk 0:02:28]} 15. Ng3 {[%clk 0:02:09]}  Bc8 {[%clk 0:01:59]} 16. h3 {[%clk 0:01:58]}  Be6 {[%clk 0:01:53]} 17. d4 {[%clk 0:01:53]}  Qc7 {[%clk 0:01:28]} 18. d5 {[%clk 0:01:51]}  Bd7 {[%clk 0:01:26]} 19. Be3 {[%clk 0:01:40]}  Rfe8 {[%clk 0:01:15]} 20. Nh2 {[%clk 0:01:33]}  Nb7 {[%clk 0:01:13]} 21. Bb1 {[%clk 0:01:32]}  Nc5 {[%clk 0:01:12]} 22. Bc2 {[%clk 0:01:31]}  b4 {[%clk 0:01:01]} 23. Qf3 {[%clk 0:01:05]}  bxc3 {[%clk 0:00:58]} 24. bxc3 {[%clk 0:01:05]}  Rb2 {[%clk 0:00:58]} 25. Rec1 {[%clk 0:00:57]}  Reb8 {[%clk 0:00:50]} 26. Ng4 {[%clk 0:00:48]}  Nb3 {[%clk 0:00:27]} 27. Bxb3 {[%clk 0:00:41]}  cxb3 {[%clk 0:00:27]} 28. Nxf6+ {[%clk 0:00:33]}  Bxf6 {[%clk 0:00:28]} 29. c4 {[%clk 0:00:34]}  Rc2 {[%clk 0:00:23]} 30. Rxc2 {[%clk 0:00:31]}  bxc2 {[%clk 0:00:24]} 31. Rc1 {[%clk 0:00:24]}  Qxc4 {[%clk 0:00:20]} 32. Qe2 {[%clk 0:00:19]}  Rc8 {[%clk 0:00:11]} 33. Qxc4 {[%clk 0:00:17]}  Rxc4 {[%clk 0:00:11]} 34. f3 {[%clk 0:00:17]}  Bd8 {[%clk 0:00:09]} 35. Kf2 {[%clk 0:00:17]}  g6 {[%clk 0:00:09]} 36. Nf1 {[%clk 0:00:12]}  f5 {[%clk 0:00:08]} 37. Ke2 {[%clk 0:00:10]}  Bb5 {[%clk 0:00:08]} 38. Kf2 {[%clk 0:00:07]}  fxe4 {[%clk 0:00:06]} 39. fxe4 {[%clk 0:00:07]}  Rxe4 {[%clk 0:00:04]} 40. Rxc2 {[%clk 0:00:08]}  Bxf1 {[%clk 0:00:04]} 41. Kxf1 {[%clk 0:00:07]}  Rxe3 {[%clk 0:00:05]} 42. Rc8 {[%clk 0:00:07]}  Kf7 {[%clk 0:00:04]} 43. Rxd8 {[%clk 0:00:08]}  Ke7 {[%clk 0:00:05]} 44. Rh8 {[%clk 0:00:08]}  Rd3 {[%clk 0:00:05]} 45. Rxh7+ {[%clk 0:00:08]}  Kf6 {[%clk 0:00:06]} 46. Rd7 {[%clk 0:00:08]}  Rxd5 {[%clk 0:00:06]} 47. Ke2 {[%clk 0:00:09]}  Rd4 {[%clk 0:00:06]} 48. Ke3 {[%clk 0:00:08]}  Rd1 {[%clk 0:00:06]} 49. g3 {[%clk 0:00:09]}  d5 {[%clk 0:00:03]} 50. Rd6+ {[%clk 0:00:08]}  Kf5 {[%clk 0:00:03]} 51. g4+ {[%clk 0:00:08]}  Kg5 {[%clk 0:00:04]} 52. Kf3 {[%clk 0:00:08]}  Rd3+ {[%clk 0:00:03]} 53. Ke2 {[%clk 0:00:08]}  Rxh3 {[%clk 0:00:03]} 54. Rxd5 {[%clk 0:00:08]}  Kf4 {[%clk 0:00:03]} 55. Rd6 {[%clk 0:00:09]}  Rh2+ {[%clk 0:00:03]} 56. Ke1 {[%clk 0:00:08]}  g5 {[%clk 0:00:03]} 57. Re6 {[%clk 0:00:08]}  e4 {[%clk 0:00:03]} 58. Rf6+ {[%clk 0:00:07]}  Ke3 {[%clk 0:00:04]} 59. Rf7 {[%clk 0:00:08]}  Rh1+ {[%clk 0:00:04]} 60. Rf1 {[%clk 0:00:07]}  Rxf1+ {[%clk 0:00:05]} 61. Kxf1 {[%clk 0:00:07]}  Kd2 {[%clk 0:00:05]} 0-1


[Site "https://www.chess.com"]

[Event "Titled Tuesday Blitz August 1 Early 2023"]
[White "Vaglio Munoz, Jaime"]
[Black "Cheer_Down"]
[WhiteFideId "6500145"]
[WhiteElo "2266"]
[BlackElo "2412"]
[Result "1/2-1/2"]
[Round "7"]
[TimeControl "180+1"]
[Date "2023.08.01"]
[WhiteClock "0:00:31"]
[BlackClock "0:00:17"]
[Board "174"]

1. Nf3 {[%clk 0:03:00]}  d5 {[%clk 0:02:59]} 2. c4 {[%clk 0:03:00]}  e6 {[%clk 0:02:58]} 3. b3 {[%clk 0:03:00]}  Nf6 {[%clk 0:02:58]} 4. Bb2 {[%clk 0:03:00]}  Be7 {[%clk 0:02:58]} 5. g3 {[%clk 0:03:00]}  O-O {[%clk 0:02:59]} 6. Bg2 {[%clk 0:03:00]}  c5 {[%clk 0:02:58]} 7. O-O {[%clk 0:02:59]}  Nc6 {[%clk 0:02:51]} 8. cxd5 {[%clk 0:02:58]}  Nxd5 {[%clk 0:02:49]} 9. d4 {[%clk 0:02:58]}  cxd4 {[%clk 0:02:47]} 10. Nxd4 {[%clk 0:02:59]}  Bd7 {[%clk 0:02:47]} 11. Nd2 {[%clk 0:02:56]}  Nxd4 {[%clk 0:02:46]} 12. Bxd4 {[%clk 0:02:54]}  Bf6 {[%clk 0:02:41]} 13. Nf3 {[%clk 0:02:53]}  Bc6 {[%clk 0:02:39]} 14. Ne5 {[%clk 0:02:51]}  Bxe5 {[%clk 0:02:33]} 15. Bxe5 {[%clk 0:02:50]}  Qa5 {[%clk 0:02:32]} 16. Qe1 {[%clk 0:02:36]}  Qxe1 {[%clk 0:02:27]} 17. Rfxe1 {[%clk 0:02:37]}  f6 {[%clk 0:02:27]} 18. Bb2 {[%clk 0:02:33]}  Nb4 {[%clk 0:02:25]} 19. Rec1 {[%clk 0:02:32]}  Rfc8 {[%clk 0:02:21]} 20. Bf1 {[%clk 0:02:27]}  Bd5 {[%clk 0:02:11]} 21. a3 {[%clk 0:02:26]}  Nc6 {[%clk 0:02:03]} 22. b4 {[%clk 0:02:24]}  e5 {[%clk 0:01:59]} 23. e3 {[%clk 0:02:23]}  Kf7 {[%clk 0:01:52]} 24. Bh3 {[%clk 0:02:22]}  Be6 {[%clk 0:01:50]} 25. Bg2 {[%clk 0:02:20]}  Nd8 {[%clk 0:01:46]} 26. Kf1 {[%clk 0:02:15]}  Rxc1+ {[%clk 0:01:45]} 27. Rxc1 {[%clk 0:02:14]}  Rc8 {[%clk 0:01:45]} 28. Ke2 {[%clk 0:02:09]}  Rxc1 {[%clk 0:01:43]} 29. Bxc1 {[%clk 0:02:10]}  Bc4+ {[%clk 0:01:40]} 30. Kd2 {[%clk 0:02:09]}  Ke6 {[%clk 0:01:40]} 31. Kc3 {[%clk 0:02:08]}  Bd5 {[%clk 0:01:40]} 32. f3 {[%clk 0:02:07]}  Bc6 {[%clk 0:01:36]} 33. g4 {[%clk 0:02:05]}  h6 {[%clk 0:01:33]} 34. e4 {[%clk 0:02:02]}  Ke7 {[%clk 0:01:32]} 35. Kb3 {[%clk 0:02:01]}  Ne6 {[%clk 0:01:30]} 36. Be3 {[%clk 0:01:59]}  b6 {[%clk 0:01:27]} 37. a4 {[%clk 0:01:59]}  Nf4 {[%clk 0:01:23]} 38. Bf1 {[%clk 0:01:55]}  Kd6 {[%clk 0:01:20]} 39. b5 {[%clk 0:01:48]}  Bd7 {[%clk 0:01:17]} 40. Kc4 {[%clk 0:01:47]}  Be6+ {[%clk 0:01:17]} 41. Kc3 {[%clk 0:01:46]}  Bf7 {[%clk 0:01:15]} 42. Bc1 {[%clk 0:01:45]}  Kd7 {[%clk 0:01:00]} 43. Ba3 {[%clk 0:01:45]}  Kc7 {[%clk 0:00:56]} 44. Bf8 {[%clk 0:01:43]}  Ne6 {[%clk 0:00:56]} 45. Bb4 {[%clk 0:01:41]}  Kd7 {[%clk 0:00:53]} 46. Be2 {[%clk 0:01:38]}  Nd4 {[%clk 0:00:49]} 47. Bd1 {[%clk 0:01:38]}  h5 {[%clk 0:00:46]} 48. h3 {[%clk 0:01:37]}  hxg4 {[%clk 0:00:44]} 49. hxg4 {[%clk 0:01:36]}  g5 {[%clk 0:00:44]} 50. a5 {[%clk 0:01:35]}  Nxb5+ {[%clk 0:00:37]} 51. Kd3 {[%clk 0:01:34]}  Nd4 {[%clk 0:00:37]} 52. a6 {[%clk 0:01:27]}  Kc6 {[%clk 0:00:35]} 53. Ba4+ {[%clk 0:01:24]}  b5 {[%clk 0:00:35]} 54. Bd1 {[%clk 0:01:23]}  Bc4+ {[%clk 0:00:34]} 55. Ke3 {[%clk 0:01:21]}  Kd7 {[%clk 0:00:24]} 56. Bc5 {[%clk 0:01:18]}  Nc6 {[%clk 0:00:24]} 57. Kd2 {[%clk 0:01:15]}  b4 {[%clk 0:00:24]} 58. Ba4 {[%clk 0:01:13]}  Bxa6 {[%clk 0:00:22]} 59. Bxb4 {[%clk 0:00:58]}  Bb7 {[%clk 0:00:19]} 60. Bc5 {[%clk 0:00:58]}  a6 {[%clk 0:00:19]} 61. Kc3 {[%clk 0:00:57]}  Ke6 {[%clk 0:00:17]} 62. Bb3+ {[%clk 0:00:56]}  Kd7 {[%clk 0:00:17]} 63. Bd5 {[%clk 0:00:56]}  Na5 {[%clk 0:00:15]} 64. Ba2 {[%clk 0:00:50]}  Bc6 {[%clk 0:00:15]} 65. Bb6 {[%clk 0:00:48]}  Nb7 {[%clk 0:00:14]} 66. Bc4 {[%clk 0:00:47]}  Nd6 {[%clk 0:00:13]} 67. Bxa6 {[%clk 0:00:46]}  Bb5 {[%clk 0:00:14]} 68. Bxb5+ {[%clk 0:00:42]}  Nxb5+ {[%clk 0:00:14]} 69. Kd2 {[%clk 0:00:41]}  Ke6 {[%clk 0:00:12]} 70. Ke3 {[%clk 0:00:40]}  Nd6 {[%clk 0:00:11]} 71. Bc5 {[%clk 0:00:38]}  Nc4+ {[%clk 0:00:11]} 72. Kd3 {[%clk 0:00:38]}  Na5 {[%clk 0:00:12]} 73. Bb6 {[%clk 0:00:35]}  Nc6 {[%clk 0:00:13]} 74. Be3 {[%clk 0:00:34]}  Nb8 {[%clk 0:00:14]} 75. Kc4 {[%clk 0:00:33]}  Nd7 {[%clk 0:00:14]} 76. Kb5 {[%clk 0:00:31]}  Nf8 {[%clk 0:00:14]} 77. Kc4 {[%clk 0:00:31]}  Ng6 {[%clk 0:00:15]} 78. Kd3 {[%clk 0:00:31]}  Nh4 {[%clk 0:00:15]} 79. Ke2 {[%clk 0:00:31]}  Ng2 {[%clk 0:00:16]} 80. Bc5 {[%clk 0:00:31]}  Nh4 {[%clk 0:00:17]} 81. Be3 {[%clk 0:00:30]}  Ng6 {[%clk 0:00:17]} 82. Bc5 {[%clk 0:00:31]}  Kd7 {[%clk 0:00:17]} 83. Be3 {[%clk 0:00:31]}  Ke6 {[%clk 0:00:17]} 84. Kd3 {[%clk 0:00:32]}  Nh4 {[%clk 0:00:17]} 85. Ke2 {[%clk 0:00:31]} 1/2-1/2


[Site "https://www.chess.com"]

[Event "Titled Tuesday Blitz August 1 Early 2023"]
[White "Der_Balak_3Halak"]
[Black "Tqebuchava, Zurab"]
[BlackFideId "13601113"]
[WhiteElo "2409"]
[BlackElo "2262"]
[Result "0-1"]
[Round "7"]
[TimeControl "180+1"]
[Date "2023.08.01"]
[WhiteClock "0:01:41"]
[BlackClock "0:00:32"]
[Board "175"]

1. c4 {[%clk 0:03:00]}  d6 {[%clk 0:02:59]} 2. d4 {[%clk 0:02:59]}  Nf6 {[%clk 0:02:53]} 3. Nc3 {[%clk 0:02:58]}  Nbd7 {[%clk 0:02:52]} 4. g3 {[%clk 0:02:57]}  e5 {[%clk 0:02:49]} 5. e3 {[%clk 0:02:57]}  Be7 {[%clk 0:02:36]} 6. Bg2 {[%clk 0:02:56]}  O-O {[%clk 0:02:29]} 7. Nge2 {[%clk 0:02:55]}  c6 {[%clk 0:02:24]} 8. Qc2 {[%clk 0:02:53]}  Re8 {[%clk 0:02:13]} 9. b4 {[%clk 0:02:53]}  a5 {[%clk 0:02:12]} 10. b5 {[%clk 0:02:52]}  exd4 {[%clk 0:02:08]} 11. Nxd4 {[%clk 0:02:47]}  Ne5 {[%clk 0:02:06]} 12. bxc6 {[%clk 0:02:44]}  bxc6 {[%clk 0:02:00]} 13. Nxc6 {[%clk 0:02:45]}  Nxc6 {[%clk 0:01:46]} 14. Bxc6 {[%clk 0:02:46]}  Ra6 {[%clk 0:01:46]} 15. Bxe8 {[%clk 0:02:43]}  Qxe8 {[%clk 0:01:45]} 16. O-O {[%clk 0:02:40]}  Bh3 {[%clk 0:01:44]} 17. Re1 {[%clk 0:02:38]}  Qc6 {[%clk 0:01:43]} 18. e4 {[%clk 0:02:35]}  Qxc4 {[%clk 0:01:43]} 19. Bg5 {[%clk 0:02:28]}  h6 {[%clk 0:01:36]} 20. e5 {[%clk 0:02:09]}  Qc6 {[%clk 0:01:05]} 21. f3 {[%clk 0:02:00]}  hxg5 {[%clk 0:01:02]} 22. exf6 {[%clk 0:01:55]}  Bxf6 {[%clk 0:01:02]} 23. Rac1 {[%clk 0:01:46]}  Bd4+ {[%clk 0:00:57]} 24. Qf2 {[%clk 0:01:40]}  Qxf3 {[%clk 0:00:37]} 25. Re8+ {[%clk 0:01:40]}  Kh7 {[%clk 0:00:35]} 26. Ne4 {[%clk 0:01:40]}  Bxf2+ {[%clk 0:00:33]} 27. Nxf2 {[%clk 0:01:41]}  Qg2# {[%clk 0:00:32]} 0-1


[Site "https://www.chess.com"]

[Event "Titled Tuesday Blitz August 1 Early 2023"]
[White "Silva Lucena, Cristian"]
[Black "Hrescak, Ivana"]
[WhiteFideId "2232588"]
[BlackFideId "14613441"]
[WhiteElo "2401"]
[BlackElo "2218"]
[Result "1-0"]
[Round "7"]
[TimeControl "180+1"]
[Date "2023.08.01"]
[WhiteClock "0:00:59"]
[BlackClock "0:00:02"]
[Board "179"]

1. c4 {[%clk 0:02:57]}  e5 {[%clk 0:03:00]} 2. Nc3 {[%clk 0:02:56]}  Nf6 {[%clk 0:03:00]} 3. Nf3 {[%clk 0:02:56]}  e4 {[%clk 0:02:59]} 4. Ng5 {[%clk 0:02:48]}  c6 {[%clk 0:02:57]} 5. Ngxe4 {[%clk 0:02:47]}  Nxe4 {[%clk 0:02:45]} 6. Nxe4 {[%clk 0:02:46]}  d5 {[%clk 0:02:45]} 7. cxd5 {[%clk 0:02:45]}  cxd5 {[%clk 0:02:42]} 8. Nc3 {[%clk 0:02:44]}  d4 {[%clk 0:02:35]} 9. Nb1 {[%clk 0:02:43]}  Nc6 {[%clk 0:02:29]} 10. d3 {[%clk 0:02:30]}  Bd6 {[%clk 0:02:27]} 11. g3 {[%clk 0:02:27]}  h5 {[%clk 0:02:23]} 12. Bg2 {[%clk 0:02:00]}  h4 {[%clk 0:02:23]} 13. Nd2 {[%clk 0:01:59]}  h3 {[%clk 0:02:12]} 14. Be4 {[%clk 0:01:55]}  Be6 {[%clk 0:02:02]} 15. a3 {[%clk 0:01:52]}  O-O {[%clk 0:01:47]} 16. b4 {[%clk 0:01:50]}  a6 {[%clk 0:01:43]} 17. Nc4 {[%clk 0:01:44]}  Bc7 {[%clk 0:01:40]} 18. Qd2 {[%clk 0:01:38]}  Qe7 {[%clk 0:01:38]} 19. Qg5 {[%clk 0:01:37]}  f6 {[%clk 0:01:05]} 20. Qh4 {[%clk 0:01:30]}  f5 {[%clk 0:00:49]} 21. Qxe7 {[%clk 0:01:30]}  Nxe7 {[%clk 0:00:49]} 22. Bxb7 {[%clk 0:01:31]}  Ra7 {[%clk 0:00:42]} 23. Bf3 {[%clk 0:01:28]}  Nd5 {[%clk 0:00:38]} 24. Bb2 {[%clk 0:01:25]}  Nc3 {[%clk 0:00:29]} 25. Kd2 {[%clk 0:01:22]}  Bxc4 {[%clk 0:00:22]} 26. dxc4 {[%clk 0:01:23]}  Be5 {[%clk 0:00:19]} 27. Bxc3 {[%clk 0:01:18]}  dxc3+ {[%clk 0:00:19]} 28. Kc2 {[%clk 0:01:19]}  a5 {[%clk 0:00:20]} 29. b5 {[%clk 0:01:16]}  f4 {[%clk 0:00:17]} 30. g4 {[%clk 0:01:10]}  Re8 {[%clk 0:00:16]} 31. Bd5+ {[%clk 0:01:06]}  Kh7 {[%clk 0:00:15]} 32. e4 {[%clk 0:01:05]}  fxe3 {[%clk 0:00:15]} 33. fxe3 {[%clk 0:01:06]}  Bd6 {[%clk 0:00:14]} 34. e4 {[%clk 0:01:05]}  Be5 {[%clk 0:00:13]} 35. Rhf1 {[%clk 0:01:04]}  Ree7 {[%clk 0:00:11]} 36. Rf3 {[%clk 0:01:04]}  Kg6 {[%clk 0:00:11]} 37. Rxh3 {[%clk 0:01:04]}  Rac7 {[%clk 0:00:07]} 38. b6 {[%clk 0:01:04]}  Rc8 {[%clk 0:00:06]} 39. b7 {[%clk 0:01:03]}  Rb8 {[%clk 0:00:06]} 40. Rb1 {[%clk 0:01:01]}  Rd7 {[%clk 0:00:06]} 41. Rb6+ {[%clk 0:01:01]}  Rd6 {[%clk 0:00:05]} 42. Rxd6+ {[%clk 0:00:57]}  Bxd6 {[%clk 0:00:06]} 43. Kxc3 {[%clk 0:00:58]}  Bxa3 {[%clk 0:00:06]} 44. Kd4 {[%clk 0:00:58]}  Bb4 {[%clk 0:00:06]} 45. c5 {[%clk 0:00:58]}  a4 {[%clk 0:00:06]} 46. c6 {[%clk 0:00:58]}  Bd6 {[%clk 0:00:06]} 47. e5 {[%clk 0:00:59]}  Bc7 {[%clk 0:00:02]} 48. Ra3 {[%clk 0:00:59]} 1-0


[Site "https://www.chess.com"]

[Event "Titled Tuesday Blitz August 1 Early 2023"]
[White "Dishman, Stephen"]
[Black "Butti, Enrique"]
[WhiteFideId "403024"]
[BlackFideId "3700470"]
[WhiteElo "2397"]
[BlackElo "2184"]
[Result "1-0"]
[Round "7"]
[TimeControl "180+1"]
[Date "2023.08.01"]
[WhiteClock "0:01:46"]
[BlackClock "0:01:41"]
[Board "180"]

1. c4 {[%clk 0:03:00]}  b6 {[%clk 0:02:58]} 2. Nf3 {[%clk 0:02:59]}  Bb7 {[%clk 0:02:58]} 3. g3 {[%clk 0:02:59]}  Bxf3 {[%clk 0:02:57]} 4. exf3 {[%clk 0:03:00]}  e6 {[%clk 0:02:56]} 5. Bg2 {[%clk 0:03:00]}  c6 {[%clk 0:02:55]} 6. f4 {[%clk 0:03:00]}  d5 {[%clk 0:02:55]} 7. cxd5 {[%clk 0:02:59]}  cxd5 {[%clk 0:02:54]} 8. O-O {[%clk 0:02:58]}  Bd6 {[%clk 0:02:53]} 9. Nc3 {[%clk 0:02:57]}  Ne7 {[%clk 0:02:52]} 10. d4 {[%clk 0:02:53]}  Nbc6 {[%clk 0:02:49]} 11. Be3 {[%clk 0:02:49]}  O-O {[%clk 0:02:47]} 12. Qd3 {[%clk 0:02:47]}  Rc8 {[%clk 0:02:46]} 13. Rac1 {[%clk 0:02:45]}  Na5 {[%clk 0:02:43]} 14. Rc2 {[%clk 0:02:41]}  Nc4 {[%clk 0:02:39]} 15. Bc1 {[%clk 0:02:32]}  Qd7 {[%clk 0:02:35]} 16. Rd1 {[%clk 0:02:30]}  b5 {[%clk 0:02:34]} 17. Bh3 {[%clk 0:02:25]}  b4 {[%clk 0:02:32]} 18. Ne2 {[%clk 0:02:23]}  g6 {[%clk 0:02:23]} 19. b3 {[%clk 0:02:19]}  Nb6 {[%clk 0:02:20]} 20. Bb2 {[%clk 0:02:12]}  Rxc2 {[%clk 0:02:18]} 21. Qxc2 {[%clk 0:02:13]}  Rc8 {[%clk 0:02:17]} 22. Qd3 {[%clk 0:02:11]}  Qc6 {[%clk 0:02:06]} 23. Rc1 {[%clk 0:02:10]}  Qb7 {[%clk 0:02:06]} 24. Rxc8+ {[%clk 0:02:07]}  Nbxc8 {[%clk 0:02:04]} 25. Kg2 {[%clk 0:02:02]}  Qc6 {[%clk 0:02:02]} 26. Bg4 {[%clk 0:01:59]}  a5 {[%clk 0:01:58]} 27. Bf3 {[%clk 0:01:56]}  a4 {[%clk 0:01:57]} 28. h4 {[%clk 0:01:53]}  a3 {[%clk 0:01:56]} 29. Bc1 {[%clk 0:01:49]}  h5 {[%clk 0:01:52]} 30. Bd2 {[%clk 0:01:47]}  Qc2 {[%clk 0:01:41]} 31. Qxc2 {[%clk 0:01:46]} 1-0


[Site "https://www.chess.com"]